bitfinex-derivatives/quotes_ETHF0:USTF0_20250416
["timestamp","ask_amount","ask_price","bid_price","bid_amount"]
[1744784197526,4.56116,1574.6,1574.5,2.91704]
[1744784197923,1.27026,1574.6,1574.5,2.91704]
[1744784198124,12.31907,1574.8,1574.6,1.27026]
[1744784198125,1.27025,1574.7,1574.6,1.27026]
[1744784198325,1.27025,1574.7,1574.6,2.96026]
[1744784198519,4.0149,1574.8,1574.7,1.27018]
[1744784198715,3.2078,1574.8,1574.7,1.27018]
[1744784198915,1.6695,1575.0,1574.9,1.27002]
[1744784199130,10.45280168,1575.1,1574.7,1.27018]
[1744784199425,10.45280168,1575.1,1574.9,1.26997]
[1744784199624,11.72270168,1575.1,1575.0,2.95994]
[1744784199827,10.45280168,1575.1,1575.0,2.95994]
[1744784201220,1.26971,1575.3,1575.1,1.2698]
[1744784201420,1.26971,1575.3,1575.0,1.69]
[1744784201919,1.26978,1575.2,1575.0,2.9599]
[1744784202115,1.26976,1575.3,1575.1,42.06986]
[1744784202729,1.26978,1575.2,1575.1,42.06986]
[1744784203027,1.26976,1575.3,1575.1,42.06986]
[1744784203229,6.15028,1575.4,1575.1,40.8]
[1744784203528,6.15027,1575.4,1575.2,1.26975]
[1744784203721,1.26973,1575.3,1575.2,1.26978]
[1744784204227,4.8806,1575.4,1575.2,1.26978]
[1744784204428,1.2697,1575.3,1575.2,1.26978]
[1744784204823,1.2697,1575.3,1575.1,40.8]
[1744784205029,1.2697,1575.3,1575.2,1.26978]
[1744784205233,6.15027,1575.4,1575.1,40.8]
[1744784205429,1.2697,1575.3,1575.2,1.26973]
[1744784206034,6.15028,1575.4,1575.2,1.26973]
[1744784206331,4.47748,1575.4,1575.3,1.2697]
[1744784206628,4.47748,1575.4,1575.1,43.97462]
[1744784206629,4.47748,1575.4,1575.1,40.8]
[1744784206827,4.47748,1575.4,1575.3,1.2697]
[1744784207726,4.47748,1575.4,1575.2,6.41171]
[1744784207727,1.2697,1575.3,1575.2,6.41171]
[1744784207932,4.47745,1575.4,1575.2,5.142]
[1744784208134,4.47745,1575.4,1575.2,6.41173]
[1744784208337,1.2697,1575.3,1575.2,6.41173]
[1744784208630,4.47748,1575.4,1575.3,1.2697]
[1744784208829,4.47748,1575.4,1575.3,2.137]
[1744784209029,4.47748,1575.4,1575.3,0.8673]
[1744784209830,1.2697,1575.3,1575.2,5.142]
[1744784210335,1.2697,1575.3,1575.2,6.41178]
[1744784212330,3.2078,1575.4,1575.3,1.2697]
[1744784212527,1.26958,1575.5,1575.4,1.26957]
[1744784212727,1.2696,1575.5,1575.4,1.26959]
[1744784213833,3.2078,1575.5,1575.2,8.3498]
[1744784214030,1.26958,1575.5,1575.4,1.26962]
[1744784214536,1.26956,1575.5,1575.4,1.26955]
[1744784214830,1.26958,1575.5,1575.4,1.26957]
[1744784215035,1.26958,1575.5,1575.4,2.09867]
[1744784215237,1.2695,1575.6,1575.5,1.26949]
[1744784215442,1.2695,1575.6,1575.5,2.91649]
[1744784215936,6.09404,1575.7,1575.6,1.26945]
[1744784216139,5.936,1575.9,1575.7,1.26934]
[1744784216439,7.20526,1575.9,1575.8,1.7623]
[1744784217337,10.64456,1575.9,1575.8,1.7623]
[1744784217540,10.64456,1575.9,1575.8,3.03159]
[1744784218038,10.64456,1575.9,1575.8,1.7623]
[1744784218438,10.64456,1575.9,1575.8,3.03159]
[1744784218634,10.64456,1575.9,1575.6,1.26939]
[1744784218838,1.26937,1575.7,1575.6,2.96109]
[1744784219638,2.95516,1575.8,1575.7,1.26937]
[1744784219840,2.95516,1575.8,1575.7,2.96107]
[1744784220238,2.95516,1575.8,1575.7,1.6917]
[1744784220536,13.06688,1575.8,1575.4,1.26954]
[1744784220834,2.95519,1575.7,1575.6,1.26945]
[1744784221838,1.6858,1575.7,1575.3,4.8847]
[1744784222143,4.61842,1575.6,1575.5,2.97811]
[1744784222640,1.26953,1575.5,1575.4,1.26956]
[1744784222847,2.91183,1575.5,1575.4,1.7086]
[1744784223843,1.26962,1575.4,1575.3,1.26963]
[1744784224038,2.91192,1575.4,1575.3,1.26963]
[1744784224241,2.91192,1575.4,1575.3,2.97823]
[1744784228746,4.81653,1575.4,1575.0,1.27940593]
[1744784228952,1.26986,1575.1,1575.0,1.27940593]
[1744784229249,1.26986,1575.1,1575.0,42.41742593]
[1744784229450,2.86486,1575.1,1575.0,42.41742593]
[1744784229647,12.531,1575.1,1574.7,6.39713]
[1744784229848,1.2701,1574.8,1574.7,1.6079]
[1744784230047,1.2701,1574.8,1574.7,42.4079]
[1744784230350,1.27026,1574.6,1574.5,8.00297]
[1744784230547,4.51094,1574.7,1574.6,1.27026]
[1744784230742,1.6457,1574.7,1574.6,43.67816]
[1744784231142,1.27011,1574.8,1574.7,1.27018]
[1744784231343,1.27011,1574.8,1574.7,2.98468]
[1744784231840,1.27011,1574.8,1574.7,1.7145]
[1744784232044,3.02971,1574.8,1574.7,1.7145]
[1744784232849,2.97248,1574.9,1574.8,1.2701]
[1744784233045,1.7024,1574.9,1574.8,1.2701]
[1744784233449,1.2701,1574.8,1574.7,2.98462]
[1744784233651,1.7024,1574.9,1574.7,2.98462]
[1744784233949,2.97249,1574.9,1574.8,1.7145]
[1744784234349,2.97249,1574.9,1574.8,2.9846]
[1744784234553,2.97249,1574.9,1574.8,1.7145]
[1744784234754,1.7024,1574.9,1574.8,2.9846]
[1744784234951,10.41372,1575.1,1574.9,1.27002]
[1744784235255,3.2078,1575.1,1575.0,2.90994]
[1744784235452,3.2078,1575.1,1575.0,3.75834]
[1744784235852,1.27930593,1575.2,1575.1,1.26986]
[1744784236157,1.27930593,1575.2,1575.1,2.90986]
[1744784236855,1.27930593,1575.2,1575.1,1.64]
[1744784237560,1.27930593,1575.2,1575.1,2.90986]
[1744784238460,1.27930593,1575.2,1575.1,1.64]
[1744784238757,1.26989,1575.1,1575.0,1.26988]
[1744784238955,1.26989,1575.1,1575.0,2.86358]
[1744784240151,1.26989,1575.1,1575.0,1.5937]
[1744784240351,2.10349,1575.1,1575.0,2.86364]
[1744784241058,2.10349,1575.1,1575.0,1.5937]
[1744784241260,2.10349,1575.1,1575.0,2.86364]
[1744784241457,2.10349,1575.1,1575.0,1.5937]
[1744784241759,1.26994,1575.0,1574.9,1.26994]
[1744784241952,3.01004,1575.0,1574.9,2.86914]
[1744784242153,1.26994,1575.0,1574.9,2.86917]
[1744784244062,2.88734,1575.0,1574.9,2.86917]
[1744784244562,1.26994,1575.0,1574.9,2.86917]
[1744784245456,1.26994,1575.0,1574.9,1.5992]
[1744784245655,6.09514,1575.0,1574.9,1.5992]
[1744784245857,1.2701,1574.8,1574.7,4.8504]
[1744784246058,1.2701,1574.8,1574.7,6.4722]
[1744784246351,1.2701,1574.8,1574.7,7.74238]
[1744784248267,1.2701,1574.8,1574.7,4.53458]
[1744784248568,1.6174,1574.9,1574.7,3.2644]
[1744784248763,1.6174,1574.9,1574.8,1.6164]
[1744784248967,1.27018,1574.7,1574.6,49.1358]
[1744784249267,1.6174,1574.9,1574.8,1.2701]
[1744784249461,4.47778,1575.0,1574.9,1.27002]
[1744784249663,1.27005,1574.9,1574.8,1.27005]
[1744784249868,1.27005,1574.9,1574.8,4.70125]
[1744784250168,1.27,1575.0,1574.9,1.27002]
[1744784250370,1.27,1575.0,1574.9,2.96362]
[1744784251671,4.4778,1575.0,1574.9,2.96362]
[1744784253278,1.27931593,1575.2,1575.1,1.26986]
[1744784253775,1.27931593,1575.2,1575.1,2.94616]
[1744784254182,1.26986,1575.1,1575.0,2.86459]
[1744784254875,1.26986,1575.1,1575.0,1.5947]
[1744784255071,2.96856,1575.1,1575.0,1.5947]
[1744784256484,2.96856,1575.1,1575.0,2.86464]
[1744784256887,2.96856,1575.1,1575.0,1.5947]
[1744784257084,1.2701,1574.8,1574.7,6.38514]
[1744784257273,1.2701,1574.8,1574.7,8.01284]
[1744784257478,1.2701,1574.8,1574.7,2.89788]
[1744784257678,4.4779,1574.8,1574.7,2.89788]
[1744784257984,2.127,1574.8,1574.7,2.89788]
[1744784258382,1.27026,1574.6,1574.5,5.12452593]
[1744784258585,1.27026,1574.6,1574.5,1.69652593]
[1744784258781,1.27026,1574.6,1574.2,8.38373378]
[1744784258782,1.2705,1574.3,1574.2,8.38373378]
[1744784258987,4.4783,1574.3,1574.2,8.38373378]
[1744784259591,6.2387,1574.3,1574.2,8.38373378]
[1744784259888,11.2387,1574.3,1574.2,8.38373378]
[1744784260077,6.2387,1574.3,1574.2,8.38373378]
[1744784260589,11.2387,1574.3,1574.2,8.38373378]
[1744784261484,1.27058,1574.2,1574.1,0.00952593]
[1744784261689,2.94738,1574.2,1574.1,0.00952593]
[1744784262886,2.94738,1574.2,1574.1,1.75652593]
[1744784263688,2.94738,1574.2,1574.1,3.02718593]
[1744784263991,1.27055,1574.3,1574.2,1.27058]
[1744784264193,1.27055,1574.3,1574.2,3.01758]
[1744784264892,1.27055,1574.3,1574.2,1.747]
[1744784265082,4.47835,1574.3,1574.2,1.747]
[1744784265589,1.27055,1574.3,1574.2,1.747]
[1744784265786,4.47835,1574.3,1574.2,1.747]
[1744784266186,6.12425,1574.3,1574.2,1.747]
[1744784266789,2.91645,1574.3,1574.2,1.747]
[1744784266993,6.12425,1574.3,1574.2,1.747]
[1744784269597,1.27058,1574.2,1574.1,0.00952593]
[1744784269891,2.96808,1574.2,1574.1,0.00952593]
[1744784270897,2.96808,1574.2,1574.1,1.71422593]
[1744784272298,2.96808,1574.2,1574.1,0.00952593]
[1744784273699,1.27099,1573.7,1573.6,2.11392]
[1744784273998,4.47879,1573.7,1573.6,1.7207]
[1744784274401,1.27099,1573.7,1573.6,1.7207]
[1744784274703,4.47879,1573.7,1573.6,1.7207]
[1744784274898,4.47879,1573.7,1573.6,3.3636]
[1744784275399,1.27099,1573.7,1573.6,3.3636]
[1744784276696,1.27099,1573.7,1573.6,4.63467]
[1744784277195,1.27099,1573.7,1573.6,3.3636]
[1744784277695,1.27099,1573.7,1573.6,4.63467]
[1744784277897,11.50301,1573.9,1573.8,1.27091]
[1744784277898,4.47869,1573.9,1573.8,1.27091]
[1744784278800,1.27089,1573.9,1573.8,1.27091]
[1744784278987,9.1438,1574.0,1573.7,1.6006]
[1744784279194,1.27091,1573.8,1573.7,1.6006]
[1744784280398,1.27107,1573.6,1573.5,0.00952593]
[1744784280704,1.27107,1573.6,1573.5,1.64752593]
[1744784281799,1.27107,1573.6,1573.5,2.91867593]
[1744784282005,1.27107,1573.6,1573.5,4.68497593]
[1744784282195,1.27107,1573.6,1573.5,3.41382593]
[1744784282801,1.27107,1573.6,1573.5,4.68497593]
[1744784283003,1.27107,1573.6,1573.5,3.41382593]
[1744784284399,4.47887,1573.6,1573.5,1.77582593]
[1744784284703,5.34507,1573.6,1573.5,0.00952593]
[1744784284904,7.01027,1573.6,1573.5,0.00952593]
[1744784286996,7.52073927,1573.6,1573.5,0.00952593]
[1744784288401,7.01027,1573.6,1573.5,0.00952593]
[1744784289098,1.27123,1573.4,1573.3,1.6141]
[1744784289406,4.47903,1573.4,1573.3,1.6141]
[1744784289805,4.47903,1573.4,1573.3,2.88541]
[1744784289994,4.47903,1573.4,1573.3,1.6141]
[1744784290199,4.47903,1573.4,1573.2,42.08090593]
[1744784290200,1.27131,1573.3,1573.2,42.08090593]
[1744784290402,1.27131,1573.3,1573.2,40.80952593]
[1744784290604,3.74891,1573.3,1573.2,0.00952593]
[1744784290808,3.74891,1573.3,1573.2,1.60352593]
[1744784291909,3.74891,1573.3,1573.2,0.00952593]
[1744784292807,3.74891,1573.3,1573.2,1.65472593]
[1744784293310,3.74891,1573.3,1573.2,0.00952593]
[1744784294212,2.08041,1573.3,1573.2,0.00952593]
[1744784294408,1.27131,1573.3,1573.2,2.92611593]
[1744784294809,0.00952593,1573.5,1573.2,6.65472593]
[1744784295009,1.28075593,1573.5,1573.4,1.27123]
[1744784295309,1.28075593,1573.5,1573.4,2.5444]
[1744784295705,3.87595593,1573.5,1573.4,2.5444]
[1744784296313,2.16125593,1573.5,1573.4,2.5444]
[1744784297312,2.16125593,1573.5,1573.4,1.6905]
[1744784297910,3.86345593,1573.5,1573.4,1.6905]
[1744784298913,1.27131,1573.3,1573.2,0.00952593]
[1744784300313,4.47911,1573.3,1573.2,0.00952593]
[1744784300614,4.47911,1573.3,1573.2,3.02261593]
[1744784301016,4.47911,1573.3,1573.2,1.75122593]
[1744784301920,1.27131,1573.3,1573.2,1.75122593]
[1744784302117,4.47911,1573.3,1573.2,1.75122593]
[1744784302315,1.27131,1573.3,1573.2,1.75122593]
[1744784302519,4.47911,1573.3,1573.2,1.75122593]
[1744784303113,1.27131,1573.3,1573.2,1.75122593]
[1744784304218,5.30991,1573.3,1573.2,1.75122593]
[1744784305622,5.30991,1573.3,1573.2,0.00952593]
[1744784306718,11.24591,1573.3,1573.2,0.00952593]
[1744784309420,7.20731,1573.3,1573.2,0.00952593]
[1744784309620,7.20731,1573.3,1573.2,1.66062593]
[1744784310121,7.20731,1573.3,1573.2,4.60141593]
[1744784310319,7.20731,1573.3,1573.2,3.33002593]
[1744784310822,10.41511,1573.3,1573.2,3.33002593]
[1744784311123,7.20731,1573.3,1573.2,3.33002593]
[1744784312626,1.27131,1573.3,1573.2,3.33002593]
[1744784313026,1.27131,1573.3,1573.2,4.60141593]
[1744784313424,1.27131,1573.3,1573.2,3.33002593]
[1744784313925,4.47911,1573.3,1573.2,3.33002593]
[1744784315728,1.27131,1573.3,1573.2,3.33002593]
[1744784316331,4.47911,1573.3,1573.2,3.33002593]
[1744784316635,1.27131,1573.3,1573.2,3.33002593]
[1744784316834,4.47911,1573.3,1573.2,3.33002593]
[1744784318537,1.27131,1573.3,1573.2,3.33002593]
[1744784319239,1.27131,1573.3,1573.2,4.60141593]
[1744784319739,1.27131,1573.3,1573.2,3.33002593]
[1744784320435,1.27131,1573.3,1573.2,4.60141593]
[1744784321738,1.27131,1573.3,1573.2,3.33002593]
[1744784322043,1.27131,1573.3,1573.2,4.60141593]
[1744784327349,1.27131,1573.3,1573.2,3.33002593]
[1744784328852,1.27131,1573.3,1573.2,1.67892593]
[1744784329056,3.80941,1573.3,1573.2,0.00952593]
[1744784330253,9.74541,1573.3,1573.2,0.00952593]
[1744784331248,1.27155,1573.0,1572.9,1.7604]
[1744784331554,1.27163,1572.9,1572.8,10.09873378]
[1744784331744,4.61183,1572.9,1572.8,11.78683378]
[1744784331945,4.61183,1572.9,1572.8,10.07183378]
[1744784332155,4.61183,1572.9,1572.8,1.6881]
[1744784332351,4.61183,1572.9,1572.5,8.38373378]
[1744784332352,3.17933,1572.8,1572.5,8.38373378]
[1744784332654,1.27188,1572.6,1572.5,8.39325971]
[1744784333757,1.27188,1572.6,1572.5,10.08135971]
[1744784334259,1.27188,1572.6,1572.5,8.39325971]
[1744784334557,4.68718,1572.6,1572.5,8.39325971]
[1744784334749,4.68718,1572.6,1572.5,10.14275971]
[1744784335955,1.27188,1572.6,1572.5,10.14275971]
[1744784337158,1.27188,1572.6,1572.5,1.75902593]
[1744784339261,1.27188,1572.6,1572.5,3.03098593]
[1744784339458,1.27188,1572.6,1572.5,1.75902593]
[1744784341459,3.00398,1572.6,1572.5,1.75902593]
[1744784341664,3.00398,1572.6,1572.5,0.00952593]
[1744784343560,1.28139593,1572.7,1572.6,1.27188]
[1744784343763,1.28139593,1572.7,1572.6,2.88678]
[1744784344062,1.28139593,1572.7,1572.6,1.6149]
[1744784344462,6.25499593,1572.7,1572.6,1.6149]
[1744784344654,7.11759593,1572.7,1572.6,1.6149]
[1744784345262,3.90979593,1572.7,1572.6,1.6149]
[1744784346063,7.11759593,1572.7,1572.6,1.6149]
[1744784346266,1.27188,1572.6,1572.5,0.00952593]
[1744784346563,3.03768,1572.6,1572.5,0.00952593]
[1744784346861,3.03768,1572.6,1572.5,1.60222593]
[1744784354769,1.27188,1572.6,1572.5,1.60222593]
[1744784354960,1.27188,1572.6,1572.5,2.87418593]
[1744784355157,0.00952593,1572.7,1572.6,1.27188]
[1744784355362,1.28132593,1572.7,1572.6,3.01178]
[1744784355558,1.28132593,1572.7,1572.6,1.7399]
[1744784356271,4.48912593,1572.7,1572.6,1.7399]
[1744784357461,4.48912593,1572.7,1572.6,3.01178]
[1744784357861,4.48912593,1572.7,1572.6,1.7399]
[1744784361374,7.10592593,1572.7,1572.6,1.7399]
[1744784361569,5.35572593,1572.7,1572.6,1.7399]
[1744784362573,4.48912593,1572.7,1572.6,1.7399]
[1744784364573,4.48912593,1572.7,1572.6,3.01178]
[1744784364773,3.21732593,1572.7,1572.6,3.01178]
[1744784366060,4.48912593,1572.7,1572.6,3.01178]
[1744784367672,0.00952593,1572.7,1572.6,3.01178]
[1744784368169,1.28132593,1572.7,1572.6,3.01178]
[1744784372282,1.28132593,1572.7,1572.6,1.7399]
[1744784372475,4.48912593,1572.7,1572.6,1.7399]
[1744784372969,1.27188,1572.6,1572.5,0.00952593]
[1744784373373,2.98148,1572.6,1572.5,0.00952593]
[1744784376478,6.18928,1572.6,1572.5,0.00952593]
[1744784376675,1.27228,1572.1,1572.0,1.27231]
[1744784376879,1.27228,1572.1,1572.0,0.8555]
[1744784377081,4.48008,1572.1,1572.0,0.8555]
[1744784377383,1.27236,1572.0,1571.9,15.55902378]
[1744784377686,1.27236,1572.0,1571.9,14.28663378]
[1744784377883,1.27236,1572.0,1571.9,17.30237378]
[1744784378483,1.27232,1572.1,1572.0,1.27234]
[1744784378677,1.27232,1572.1,1572.0,1.7433]
[1744784379884,1.27232,1572.1,1572.0,3.01566]
[1744784380785,1.27226,1572.2,1572.1,1.27226]
[1744784380987,1.27201,1572.5,1572.4,1.27201]
[1744784381285,1.27205,1572.4,1572.3,1.27205]
[1744784381585,1.27212,1572.3,1572.2,7.18023]
[1744784383584,1.272,1572.5,1572.4,1.27199]
[1744784384276,1.272,1572.5,1572.4,42.07199]
[1744784386292,1.27192,1572.6,1572.5,1.27191]
[1744784386889,1.27196,1572.5,1572.4,42.95378]
[1744784387390,1.27196,1572.5,1572.4,41.6818]
[1744784389090,1.27196,1572.5,1572.4,42.95384]
[1744784391298,1.27196,1572.5,1572.4,41.6818]
[1744784391499,5.30556,1572.5,1572.4,40.8]
[1744784392098,2.09776,1572.5,1572.4,40.8]
[1744784392395,5.30556,1572.5,1572.4,40.8]
[1744784393500,5.30556,1572.5,1572.4,42.07204]
[1744784393797,0.8258,1572.5,1572.4,42.07204]
[1744784393998,1.27191,1572.6,1572.5,1.27196]
[1744784394198,1.27191,1572.6,1572.5,2.94326]
[1744784394787,1.27191,1572.6,1572.5,4.67816]
[1744784396198,1.27191,1572.6,1572.5,3.4062]
[1744784396801,1.27191,1572.6,1572.5,4.67816]
[1744784397699,1.27191,1572.6,1572.5,3.4062]
[1744784398102,2.96791,1572.6,1572.5,3.4062]
[1744784398597,1.27191,1572.6,1572.5,3.4062]
[1744784400393,1.27212,1572.3,1572.2,5.068]
[1744784400590,1.27212,1572.3,1572.2,6.7268]
[1744784400798,1.27212,1572.3,1572.2,1.6588]
[1744784400999,1.27212,1572.3,1572.2,2.931]
[1744784401492,1.27212,1572.3,1572.2,1.6588]
[1744784404100,1.27212,1572.3,1572.2,2.931]
[1744784408411,1.27212,1572.3,1572.2,1.6588]
[1744784409109,1.27212,1572.3,1572.2,2.931]
[1744784409313,1.27212,1572.3,1572.2,1.6588]
[1744784409810,2.90802,1572.3,1572.2,1.6588]
[1744784410210,6.11582,1572.3,1572.2,1.6588]
[1744784410613,3.18051,1572.2,1571.8,115.55680198]
[1744784410910,1.27236,1572.0,1571.9,1.7482]
[1744784411108,1.27236,1572.0,1571.9,42.5482]
[1744784412106,1.27236,1572.0,1571.9,40.8]
[1744784412313,1.27244,1571.9,1571.8,0.00617896]
[1744784412714,1.27244,1571.9,1571.8,40.80617896]
[1744784413219,1.27243,1572.0,1571.8,42.55437896]
[1744784413410,3.2078,1572.1,1572.0,1.27236]
[1744784413609,1.27214,1572.3,1572.2,1.2722]
[1744784414219,1.27214,1572.3,1572.2,2.937]
[1744784414715,1.27214,1572.3,1572.2,1.6648]
[1744784415104,1.27214,1572.3,1572.2,4.5408]
[1744784415308,8.08265,1572.5,1572.3,1.2721]
[1744784415309,6.38775,1572.5,1572.3,1.2721]
[1744784415508,1.27209,1572.4,1572.3,1.6038]
[1744784420921,1.27209,1572.4,1572.3,2.87592]
[1744784421722,1.27209,1572.4,1572.3,1.6038]
[1744784421927,1.27209,1572.4,1572.3,2.87592]
[1744784423025,1.27209,1572.4,1572.3,1.6038]
[1744784424527,1.27209,1572.4,1572.3,2.87592]
[1744784424714,1.27209,1572.4,1572.3,1.27212]
[1744784425226,1.27214,1572.3,1572.2,1.27213]
[1744784427630,1.27222,1572.2,1572.1,1.27219]
[1744784427827,1.27216,1572.3,1572.2,1.27215]
[1744784429330,1.27222,1572.2,1572.1,1.27221]
[1744784429631,1.27232,1572.1,1572.0,1.27231]
[1744784430330,1.27241,1572.0,1571.9,1.2724]
[1744784430531,1.27241,1572.0,1571.9,6.3264]
[1744784430829,1.27236,1572.1,1572.0,1.27235]
[1744784431029,1.27227,1572.2,1571.9,5.054]
[1744784431330,4.48007,1572.2,1572.1,1.27225]
[1744784432032,1.27227,1572.2,1572.1,1.27225]
[1744784432335,1.2723,1572.1,1572.0,1.27229]
[1744784432631,1.27226,1572.2,1572.1,1.27225]
[1744784433134,3.2078,1572.4,1572.1,3.1807]
[1744784433431,1.27213,1572.3,1572.2,1.27214]
[1744784434332,3.2078,1572.4,1572.3,1.27212]
[1744784434333,1.2721,1572.4,1572.3,1.27212]
[1744784436529,1.27202,1572.5,1572.4,1.27202]
[1744784436729,1.272,1572.5,1572.4,1.27202]
[1744784436926,0.00952593,1572.7,1572.4,10.04]
[1744784437122,0.00952593,1572.7,1572.6,1.27188]
[1744784437532,0.00952593,1572.7,1572.6,6.27188]
[1744784437728,0.00952593,1572.7,1572.6,9.47968]
[1744784437932,0.00952593,1572.7,1572.6,4.47968]
[1744784439029,0.00952593,1572.7,1572.6,1.27188]
[1744784439235,0.00952593,1572.7,1572.6,4.47968]
[1744784440437,0.00952593,1572.7,1572.6,9.47968]
[1744784441126,0.00952593,1572.7,1572.6,45.27968]
[1744784446739,0.00952593,1572.7,1572.6,42.07188]
[1744784449340,3.2078,1573.2,1573.1,1.2714]
[1744784449341,1.27141,1573.2,1573.1,1.2714]
[1744784451248,1.28086593,1573.3,1573.2,1.27139]
[1744784451935,0.00952593,1573.3,1573.0,5.04852593]
[1744784452135,1.27144,1573.2,1573.1,1.27145]
[1744784452332,1.27147,1573.1,1573.0,6.32000593]
[1744784452537,1.27147,1573.1,1573.0,5.04752593]
[1744784452743,1.27147,1573.1,1573.0,6.31907593]
[1744784453141,1.27147,1573.1,1573.0,5.04752593]
[1744784454238,1.27147,1573.1,1573.0,0.00952593]
[1744784455145,1.27147,1573.1,1573.0,1.28107593]
[1744784455333,3.2078,1573.2,1573.1,1.27147]
[1744784455741,1.27147,1573.1,1573.0,1.28100593]
[1744784457449,4.47924,1573.2,1573.1,1.27147]
[1744784457946,1.27147,1573.1,1573.0,1.28101593]
[1744784458248,0.00952593,1573.3,1573.0,0.00952593]
[1744784458445,1.28089593,1573.3,1573.2,1.27139]
[1744784459247,0.00952593,1573.3,1573.2,1.27139]
[1744784459948,0.00952593,1573.3,1573.2,6.30939]
[1744784460244,1.28083593,1573.3,1573.2,6.30939]
[1744784460439,1.28083593,1573.3,1573.2,5.038]
[1744784460742,6.28083593,1573.3,1573.2,5.038]
[1744784460949,1.27139,1573.2,1573.1,1.27145]
[1744784462848,1.27147,1573.1,1573.0,0.00952593]
[1744784463346,6.27147,1573.1,1573.0,0.00952593]
[1744784463848,1.2718,1572.7,1572.6,42.07183]
[1744784464041,4.4796,1572.7,1572.6,42.07183]
[1744784467049,3.2078,1572.7,1572.6,45.44293]
[1744784467351,1.27179,1572.8,1572.7,1.2718]
[1744784467549,1.27179,1572.8,1572.7,2.982]
[1744784468150,1.27179,1572.8,1572.7,1.7102]
[1744784470254,9.47959,1572.8,1572.7,1.7102]
[1744784470854,11.23809,1572.8,1572.7,1.7102]
[1744784471054,6.23809,1572.8,1572.7,1.7102]
[1744784472558,1.27188,1572.6,1572.5,0.00617896]
[1744784472860,4.47968,1572.6,1572.5,0.82397896]
[1744784473745,4.47968,1572.6,1572.5,2.09593896]
[1744784473946,4.47968,1572.6,1572.5,3.77323896]
[1744784474459,3.2078,1572.6,1572.5,3.77323896]
[1744784474757,4.47968,1572.6,1572.5,3.77323896]
[1744784475164,4.47968,1572.6,1572.5,2.50127896]
[1744784475658,4.47968,1572.6,1572.5,3.77323896]
[1744784476660,1.27167,1572.9,1572.8,1.27167]
[1744784477258,3.2078,1573.0,1572.8,0.8066]
[1744784477457,3.2078,1573.0,1572.9,2.5872]
[1744784477658,1.27163,1573.0,1572.9,2.5872]
[1744784479366,1.27163,1573.0,1572.9,3.85883]
[1744784479764,1.2715,1573.1,1573.0,1.27155]
[1744784479963,1.28088593,1573.3,1573.0,1.723]
[1744784480157,0.00952593,1573.3,1573.2,1.27139]
[1744784480356,0.00952593,1573.3,1573.2,3.83289]
[1744784480667,0.00952593,1573.3,1573.2,44.63289]
[1744784482366,0.00952593,1573.3,1573.2,49.65689]
[1744784483870,13.66060168,1573.6,1573.5,1.27115]
[1744784484066,14.93167168,1573.6,1573.5,1.27115]
[1744784484363,13.66060168,1573.6,1573.5,1.27115]
[1744784484761,13.66060168,1573.6,1573.5,3.82245]
[1744784485063,3.2078,1573.6,1573.5,8.84545]
[1744784485272,4.47887,1573.6,1573.5,7.5743]
[1744784485566,4.47887,1573.6,1573.5,8.84545]
[1744784485958,3.2078,1573.6,1573.5,8.84545]
[1744784486160,4.47887,1573.6,1573.5,8.84545]
[1744784487165,4.47887,1573.6,1573.5,7.5743]
[1744784488767,1.27107,1573.6,1573.5,7.5743]
[1744784488957,1.27107,1573.6,1573.5,8.84545]
[1744784489160,1.27107,1573.6,1573.5,7.5743]
[1744784489363,1.27107,1573.6,1573.5,2.5513]
[1744784489364,2.07157,1573.6,1573.5,2.5513]
[1744784490766,2.07157,1573.6,1573.5,1.7434]
[1744784490969,4.58787,1573.6,1573.5,1.7434]
[1744784492870,3.3168,1573.6,1573.4,0.00952593]
[1744784493075,2.99015,1573.5,1573.4,0.00952593]
[1744784493267,2.99015,1573.5,1573.4,1.72592593]
[1744784494075,2.99015,1573.5,1573.4,2.99715593]
[1744784494276,2.99015,1573.5,1573.4,1.72592593]
[1744784495779,1.27115,1573.5,1573.4,2.99715593]
[1744784496477,1.27114,1573.6,1573.5,1.27113]
[1744784496975,1.27115,1573.5,1573.4,1.28068593]
[1744784500582,1.27115,1573.5,1573.4,0.00952593]
[1744784500779,2.90085,1573.5,1573.4,0.00952593]
[1744784503286,1.27139,1573.2,1573.1,5.008]
[1744784503688,1.27139,1573.2,1573.1,47.07947]
[1744784503988,1.27139,1573.2,1573.1,45.808]
[1744784504290,1.27139,1573.2,1573.1,40.8]
[1744784504485,1.27147,1573.1,1573.0,5.01417896]
[1744784504686,4.47927,1573.1,1573.0,0.00617896]
[1744784504988,4.47927,1573.1,1573.0,40.80617896]
[1744784506293,4.47927,1573.1,1573.0,0.00617896]
[1744784506585,6.358,1573.0,1572.4,13.39273378]
[1744784506788,1.27193,1572.6,1572.5,42.07192]
[1744784506985,1.27186,1572.7,1572.5,40.8]
[1744784507189,1.27186,1572.7,1572.6,1.27187]
[1744784507497,1.27188,1572.6,1572.5,42.0719]
[1744784507791,1.27188,1572.6,1572.5,1.2719]
[1744784509193,1.27196,1572.5,1572.4,15.12523378]
[1744784509691,1.27196,1572.5,1572.4,6.7415]
[1744784509892,3.00586,1572.5,1572.4,5.009]
[1744784510093,1.27212,1572.3,1572.2,7.95224]
[1744784510591,1.27207,1572.4,1572.3,1.2721]
[1744784510791,0.8322,1572.5,1572.3,1.2721]
[1744784510990,3.2078,1572.6,1572.4,1.27202]
[1744784511190,1.27199,1572.5,1572.2,6.6801]
[1744784511392,1.27199,1572.5,1572.4,1.27204]
[1744784511892,1.27199,1572.5,1572.3,1.27206]
[1744784512788,1.27204,1572.4,1572.3,1.27206]